bitfinex-derivatives/quotes_ETHF0:USTF0_20250317
["timestamp","ask_amount","ask_price","bid_price","bid_amount"]
[1742181195625,2.1265,1913.8,1913.7,41.84517]
[1742181195827,2.1265,1913.8,1913.7,40.8]
[1742181196030,2.1265,1913.8,1913.7,41.84517]
[1742181196732,2.1265,1913.8,1913.7,40.8]
[1742181197030,2.1265,1913.8,1913.7,41.84517]
[1742181197236,12.24942,1913.8,1913.7,40.8]
[1742181198022,11.2043,1913.8,1913.7,40.8]
[1742181198832,12.24942,1913.8,1913.7,40.8]
[1742181199828,11.2043,1913.8,1913.7,40.8]
[1742181201034,11.2043,1913.8,1913.7,41.84517]
[1742181201427,14.6163,1913.8,1913.7,41.84517]
[1742181202437,14.6163,1913.8,1913.7,40.8]
[1742181202735,14.6163,1913.8,1913.7,41.84517]
[1742181202936,14.6163,1913.8,1913.7,40.8]
[1742181204137,15.66142,1913.8,1913.7,40.8]
[1742181204438,14.6163,1913.8,1913.7,40.8]
[1742181204636,14.6163,1913.8,1913.7,41.84517]
[1742181206430,8.7463,1913.8,1913.7,40.8]
[1742181206632,8.7463,1913.8,1913.7,41.84517]
[1742181207441,8.7463,1913.8,1913.7,40.8]
[1742181208340,8.7463,1913.8,1913.7,41.84517]
[1742181209241,8.7463,1913.8,1913.7,40.8]
[1742181209843,9.79142,1913.8,1913.7,40.8]
[1742181210342,10.76521265,1913.8,1913.7,40.8]
[1742181210545,9.79142,1913.8,1913.7,40.8]
[1742181211041,10.76522039,1913.8,1913.7,40.8]
[1742181211834,10.8542478,1913.8,1913.7,40.8]
[1742181212248,10.76522039,1913.8,1913.7,40.8]
[1742181212947,9.72010039,1913.8,1913.7,40.8]
[1742181213545,9.72010039,1913.8,1913.7,42.1594]
[1742181213735,8.7463,1913.8,1913.7,42.1594]
[1742181215045,8.7463,1913.8,1913.7,43.20457]
[1742181215339,5.5335,1913.8,1913.7,42.1594]
[1742181215539,5.5335,1913.8,1913.7,43.20457]
[1742181218747,2.1265,1913.8,1913.7,43.20457]
[1742181219147,34.866,1913.9,1913.8,1.04512]
[1742181219453,32.1530678,1913.9,1913.8,2.47402]
[1742181219640,33.7757,1913.9,1913.8,3.28912]
[1742181220343,32.403,1913.9,1913.8,3.28912]
[1742181220546,28.996,1913.9,1913.8,3.28912]
[1742181220746,32.403,1913.9,1913.8,3.28912]
[1742181221948,28.996,1913.9,1913.8,3.28912]
[1742181222143,32.403,1913.9,1913.8,3.28912]
[1742181222543,0.00783535,1914.0,1913.9,1.04507]
[1742181222743,5.87,1914.3,1914.2,1.0449]
[1742181222943,3.407,1914.3,1914.2,1.0449]
[1742181223753,4.60223535,1914.4,1914.3,1.04485]
[1742181223953,8.00923535,1914.4,1914.3,1.04485]
[1742181224550,8.00923535,1914.4,1914.3,2.48995]
[1742181225446,6.62263535,1914.4,1914.3,2.48995]
[1742181225642,8.00923535,1914.4,1914.3,2.48995]
[1742181226045,8.00923535,1914.4,1914.3,43.28995]
[1742181226644,1.39443535,1914.4,1914.3,43.28995]
[1742181226849,4.80143535,1914.4,1914.3,43.28995]
[1742181227454,3.41483535,1914.4,1914.3,43.28995]
[1742181229243,28.983,1914.6,1914.5,1.04474]
[1742181229449,32.389,1914.6,1914.5,1.04474]
[1742181229848,30.3424,1914.6,1914.5,41.84474]
[1742181230154,32.389,1914.6,1914.5,41.84474]
[1742181230347,28.983,1914.6,1914.5,41.84474]
[1742181230641,32.389,1914.6,1914.5,41.84474]
[1742181230845,33.7484,1914.6,1914.5,41.84474]
[1742181236256,33.7484,1914.6,1914.5,40.8]
[1742181237051,38.00088,1914.6,1914.5,40.8]
[1742181237259,43.87088,1914.6,1914.5,40.8]
[1742181237761,43.95986862,1914.6,1914.5,40.8]
[1742181237955,40.55386862,1914.6,1914.5,40.8]
[1742181238162,43.95986862,1914.6,1914.5,40.8]
[1742181238754,43.87088,1914.6,1914.5,40.8]
[1742181243759,39.4202,1914.6,1914.5,40.8]
[1742181243966,42.8262,1914.6,1914.5,40.8]
[1742181244667,42.8262,1914.6,1914.5,42.1107]
[1742181245365,42.8262,1914.6,1914.5,43.15544]
[1742181245762,42.8262,1914.6,1914.5,42.1107]
[1742181247669,36.9562,1914.6,1914.5,42.1107]
[1742181248464,37.92814945,1914.6,1914.5,42.1107]
[1742181249562,37.92814945,1914.6,1914.5,43.15544]
[1742181249762,36.9562,1914.6,1914.5,43.15544]
[1742181249966,33.5502,1914.6,1914.5,43.15544]
[1742181250161,33.7484,1914.6,1914.5,43.15544]
[1742181250657,30.3424,1914.6,1914.5,43.15544]
[1742181250863,33.7484,1914.6,1914.5,43.15544]
[1742181252174,4.7654,1914.6,1914.5,43.15544]
[1742181252362,3.406,1914.6,1914.5,43.15544]
[1742181252764,2.36426099,1914.7,1914.6,1.04468]
[1742181252964,5.84196535,1914.7,1914.6,1.4486]
[1742181253160,5.76926099,1914.7,1914.6,2.49328]
[1742181253457,6.60886099,1914.7,1914.6,2.49328]
[1742181254066,5.63593535,1914.7,1914.6,2.49328]
[1742181254668,0.00783535,1914.7,1914.6,2.49328]
[1742181254870,3.41283535,1914.7,1914.6,2.49328]
[1742181255266,4.28133535,1914.7,1914.6,2.49328]
[1742181255868,3.41283535,1914.7,1914.6,2.49328]
[1742181256370,3.2078,1915.0,1914.8,1.04452]
[1742181256672,4.757,1914.9,1914.8,1.04452]
[1742181257679,5.80154,1914.9,1914.7,1.0446]
[1742181257879,1.352,1914.8,1914.7,1.0446]
[1742181258970,1.352,1914.8,1914.6,1.04465]
[1742181259271,1.7014,1914.7,1914.6,1.04465]
[1742181259979,5.1064,1914.7,1914.6,1.04465]
[1742181263577,3.405,1914.7,1914.6,1.04465]
[1742181265488,1.352,1914.8,1914.7,1.04463]
[1742181265781,4.757,1914.8,1914.7,1.04463]
[1742181266371,0.804,1914.9,1914.8,1.04457]
[1742181266578,5.6475,1914.9,1914.8,1.04457]
[1742181266774,2.2425,1914.9,1914.8,1.04457]
[1742181267176,5.6475,1914.9,1914.8,1.04457]
[1742181270277,5.6475,1914.9,1914.8,2.38687]
[1742181270886,2.2425,1914.9,1914.8,2.38687]
[1742181271081,5.6465,1914.9,1914.8,2.38687]
[1742181275681,0.00783535,1915.0,1914.9,1.04452]
[1742181275879,0.00783535,1915.0,1914.9,1.85642]
[1742181276079,0.00783535,1915.0,1914.9,42.65642]
[1742181276277,0.00783535,1915.0,1914.9,44.08992]
[1742181276484,1.38833535,1915.0,1914.9,44.08992]
[1742181276885,1.38833535,1915.0,1914.9,41.84452]
[1742181277085,2.21243535,1915.0,1914.9,41.84452]
[1742181278488,5.61643535,1915.0,1914.9,41.84452]
[1742181281889,5.61643535,1915.0,1914.9,43.23322]
[1742181288792,2.21243535,1915.0,1914.9,43.23322]
[1742181288989,0.00783535,1915.0,1914.9,43.23322]
[1742181290197,0.00783535,1915.0,1914.9,46.44102]
[1742181291795,1.44263535,1915.0,1914.9,46.44102]
[1742181295501,1.44263535,1915.0,1914.9,47.10233659]
[1742181297097,4.84563535,1915.0,1914.9,47.10233659]
[1742181301306,2.0881414,1915.0,1914.9,47.10233659]
[1742181304601,0.00776627,1915.1,1915.0,1.04446]
[1742181304802,3.41076627,1915.1,1915.0,5.62526]
[1742181305105,0.00776627,1915.1,1915.0,6.47576]
[1742181305405,6.27e-06,1915.1,1915.0,9.63707659]
[1742181305603,6.27e-06,1915.1,1915.0,50.43707659]
[1742181305803,6.27e-06,1915.1,1915.0,56.84888139]
[1742181306002,0.0201,1916.0,1915.9,1.04397]
[1742181306200,1.437,1916.0,1915.9,1.04397]
[1742181306703,1.437,1916.0,1915.9,41.84397]
[1742181306903,2.48092,1916.0,1915.9,40.8]
[1742181307101,1.437,1916.0,1915.9,41.84397]
[1742181309109,1.437,1916.0,1915.9,43.27767]
[1742181309405,4.839,1916.0,1915.9,43.27767]
[1742181311507,0.0201,1916.0,1915.9,43.27767]
[1742181312309,0.0201,1916.0,1915.9,46.48547]
[1742181316205,0.0201,1916.0,1915.9,43.27767]
[1742181316404,1.06402,1916.0,1915.9,42.2337]
[1742181316606,0.0201,1916.0,1915.9,40.8]
[1742181316814,3.0758,1916.0,1915.9,41.84397]
[1742181317308,3.0758,1916.0,1915.9,40.8]
[1742181317714,3.0557,1916.0,1915.9,41.84397]
[1742181318218,3.0557,1916.0,1915.9,43.23687]
[1742181318809,1.6679,1916.0,1915.9,43.23687]
[1742181319009,0.8149,1916.0,1915.9,43.23687]
[1742181320518,3.401,1916.1,1916.0,1.04392]
[1742181320718,3.401,1916.1,1916.0,2.49622]
[1742181321117,2.2027,1916.2,1916.1,1.04387]
[1742181321312,2.2027,1916.2,1916.1,2.49617]
[1742181321816,0.8042,1916.2,1916.1,2.49617]
[1742181322617,2.2027,1916.2,1916.1,2.49617]
[1742181324019,0.8042,1916.2,1916.1,2.49617]
[1742181325618,2.2157,1916.2,1916.1,2.49617]
[1742181325917,2.2157,1916.2,1916.1,1.4523]
[1742181326222,1.04387,1916.1,1915.9,41.84394]
[1742181326424,3.401,1916.0,1915.9,41.84397]
[1742181328717,1.4115,1916.1,1916.0,1.04392]
[1742181329024,4.8125,1916.1,1916.0,2.40992]
[1742181336921,5.85637,1916.1,1916.0,1.366]
[1742181337121,4.8125,1916.1,1915.9,40.8]
[1742181337322,3.25032,1916.0,1915.9,40.8]
[1742181337936,5.4142,1916.0,1915.9,40.8]
[1742181338230,5.4142,1916.0,1915.9,41.84397]
[1742181338427,2.2064,1916.0,1915.9,41.84397]
[1742181338734,2.2064,1916.0,1915.9,40.8]
[1742181339035,2.2064,1916.0,1915.9,41.84397]
[1742181339237,2.2064,1916.0,1915.9,43.24397]
[1742181339426,2.2064,1916.0,1915.9,41.84397]
[1742181339735,5.4142,1916.0,1915.9,40.8]
[1742181340030,5.4142,1916.0,1915.9,41.84397]
[1742181340437,5.4142,1916.0,1915.9,40.8]
[1742181340831,6.45812,1916.0,1915.9,40.8]
[1742181341633,5.4142,1916.0,1915.9,41.84397]
[1742181341939,6.45812,1916.0,1915.9,40.8]
[1742181342128,5.4142,1916.0,1915.9,41.84397]
[1742181342625,6.45812,1916.0,1915.9,40.8]
[1742181345132,1.04397,1915.9,1915.8,0.00783535]
[1742181345335,1.04413,1915.7,1915.4,1.04423]
[1742181345528,5.4931,1915.6,1915.5,1.404]
[1742181346035,6.53724,1915.6,1915.5,42.204]
[1742181347241,5.4931,1915.6,1915.5,42.204]
[1742181347935,6.53724,1915.6,1915.5,42.204]
[1742181348433,7.30874,1915.6,1915.5,42.204]
[1742181348940,6.2646,1915.6,1915.5,42.204]
[1742181349142,7.30874,1915.6,1915.5,42.204]
[1742181351342,7.30874,1915.6,1915.5,40.8]
[1742181352739,13.17874,1915.6,1915.5,40.8]
[1742181353043,15.67874,1915.6,1915.5,40.8]
[1742181353432,15.76768144,1915.6,1915.5,40.8]
[1742181354038,16.17699023,1915.6,1915.5,40.8]
[1742181355036,1.04419,1915.5,1915.4,0.00783535]
[1742181355244,1.04441,1915.1,1915.0,1.3546]
[1742181355440,4.44541,1915.1,1915.0,1.3546]
[1742181355948,6.55311,1915.1,1915.0,42.1546]
[1742181357349,6.55311,1915.1,1915.0,40.8]
[1742181357743,6.55311,1915.1,1915.0,42.2507]
[1742181357936,6.55311,1915.1,1915.0,40.8]
[1742181358446,15.68391,1915.1,1915.0,40.8]
[1742181358644,1.04473,1914.6,1914.4,2.2216]
[1742181358843,4.1586,1914.5,1914.4,0.7709]
[1742181359046,6.51924,1914.5,1914.4,0.7709]
[1742181359242,5.4745,1914.5,1914.4,0.7709]
[1742181359441,5.4745,1914.5,1914.1,1.04493]
[1742181359751,12.39707535,1914.5,1914.4,40.8]
[1742181359942,14.28897535,1914.5,1914.4,40.8]
[1742181360848,16.78897535,1914.5,1914.4,40.8]
[1742181361056,16.87797147,1914.5,1914.4,40.8]
[1742181361242,1.0449,1914.2,1914.1,0.00783535]
[1742181361449,7.6547,1914.2,1914.1,0.00783535]
[1742181361750,16.11370974,1914.2,1914.1,0.00783535]
[1742181362047,17.68118974,1914.2,1913.5,0.7687]
[1742181362247,1.04517,1913.8,1913.6,40.8]
[1742181362452,4.44717,1913.7,1913.6,40.8]
[1742181362648,3.402,1913.7,1913.6,40.8]
[1742181363154,4.44717,1913.7,1913.6,40.8]
[1742181363347,7.65497,1913.7,1913.6,40.8]
[1742181363541,13.52497,1913.7,1913.6,40.8]
[1742181364448,13.61400376,1913.7,1913.6,40.8]
[1742181364853,45.08200376,1913.7,1913.6,40.8]
[1742181365054,42.58200376,1913.7,1913.6,40.8]
[1742181365357,43.34320376,1913.7,1913.6,40.8]
[1742181365745,43.34320538,1913.7,1913.6,40.8]
[1742181367145,43.25417,1913.7,1913.6,40.8]
[1742181367357,42.21,1913.7,1913.6,40.8]
[1742181367554,43.25517,1913.7,1913.6,40.8]
[1742181368155,45.84420546,1913.7,1913.6,40.8]
[1742181369458,43.34420546,1913.7,1913.6,40.8]
[1742181370161,43.34420546,1913.7,1913.6,42.1811]
[1742181370361,42.29903546,1913.7,1913.6,42.1811]
[1742181370661,43.34420546,1913.7,1913.6,42.1811]
[1742181371466,43.25517,1913.7,1913.6,42.1811]
[1742181373157,42.21,1913.7,1913.6,42.1811]
[1742181373354,42.211,1913.7,1913.6,42.1811]
[1742181373550,41.4498,1913.7,1913.6,43.22633]
[1742181373752,32.1758,1913.7,1913.6,44.01123]
[1742181374061,35.5798,1913.7,1913.6,44.01123]
[1742181374261,32.1758,1913.7,1913.6,44.01123]
[1742181374557,9.08563535,1914.5,1913.6,48.6738]
[1742181374759,3.404,1914.4,1914.0,3.2078]
[1742181374953,1.04488,1914.3,1914.1,1.419]
[1742181375255,4.25266,1914.3,1914.1,1.419]
[1742181375456,4.25267,1914.3,1914.1,1.419]
[1742181375653,4.25267,1914.3,1914.2,40.8]
[1742181376453,5.56457,1914.3,1914.2,40.8]
[1742181378256,11.5235755,1914.3,1914.2,40.8]
[1742181378464,1.04509,1913.9,1913.6,1.83012]
[1742181378654,3.407,1913.8,1913.7,1.4126]
[1742181378855,4.45212,1913.8,1913.7,42.2126]
[1742181379054,6.6148,1913.8,1913.7,42.2126]
[1742181379250,7.65992,1913.8,1913.7,42.2126]
[1742181379960,6.6148,1913.8,1913.7,42.2126]
[1742181380350,6.6148,1913.8,1913.7,43.25777]
[1742181380657,3.407,1913.8,1913.7,42.2126]
[1742181381167,3.407,1913.8,1913.7,43.25777]
[1742181381555,3.407,1913.8,1913.7,42.2126]
[1742181382056,3.407,1913.8,1913.7,43.25777]
[1742181384060,3.407,1913.8,1913.7,42.2126]
[1742181384362,3.407,1913.8,1913.7,43.25777]
[1742181387365,3.2078,1914.0,1913.8,1.0451]
[1742181387566,3.2078,1914.0,1913.9,1.4463]
[1742181387762,6.6188,1914.0,1913.9,1.4463]
[1742181388454,7.66381,1914.0,1913.9,1.4463]
[1742181388662,9.71661,1914.0,1913.9,1.4463]
[1742181389064,1.04512,1913.8,1913.7,40.8]
[1742181389261,4.25292,1913.8,1913.7,42.2463]
[1742181389662,5.04572,1913.8,1913.7,42.2463]
[1742181389862,4.0006,1913.8,1913.7,42.2463]
[1742181390062,3.2078,1913.8,1913.7,42.2463]
[1742181390367,4.45601,1914.0,1913.7,43.29145]
[1742181390561,5.90611,1914.0,1913.8,1.437]
[1742181390763,4.8611,1914.0,1913.8,1.437]
[1742181390966,32.1888,1914.1,1913.9,1.04502]
[1742181391270,32.1888,1914.1,1914.0,2.48201]
[1742181392062,35.6208,1914.1,1914.0,1.437]
[1742181393464,35.6208,1914.1,1914.0,2.48201]
[1742181395262,28.981,1914.1,1914.0,2.48201]
[1742181395569,32.41,1914.1,1914.0,2.48201]
[1742181396270,3.431,1914.3,1914.1,1.04493]
[1742181396473,4.47586,1914.3,1914.1,2.1733]
[1742181396662,3.171,1914.2,1914.1,2.1733]
[1742181396862,2.1261,1914.2,1914.1,0.7738]
[1742181397268,2.1261,1914.2,1914.1,1.81876]
[1742181397468,2.1261,1914.2,1914.1,0.7738]
[1742181397657,2.1261,1914.2,1914.1,1.81876]
[1742181398471,2.1261,1914.2,1914.1,0.7738]
[1742181398769,2.1261,1914.2,1914.1,1.81876]
[1742181400361,0.752,1914.2,1914.1,1.81876]
[1742181401065,2.1888,1914.2,1914.1,1.81876]
[1742181401272,0.752,1914.2,1914.1,1.81876]
[1742181401564,4.179,1914.2,1914.1,1.81876]
[1742181402567,5.6158,1914.2,1914.1,1.81876]
[1742181402969,5.6158,1914.2,1914.1,1.04496]
[1742181404466,4.179,1914.2,1914.1,1.04496]
[1742181404977,1.4494,1914.4,1914.2,1.04485]
[1742181405165,4.1637,1914.3,1914.2,1.04485]
[1742181405575,7.3715,1914.3,1914.0,1.04499]
[1742181405871,2.1911,1914.2,1914.1,1.04496]
[1742181406376,2.1911,1914.2,1913.9,3.2078]
[1742181406574,1.3974,1914.1,1914.0,1.04501]
[1742181407771,0.7937,1914.2,1914.1,1.04496]
[1742181408274,5.5611,1914.3,1914.2,1.0449]
[1742181409879,5.5611,1914.3,1913.8,3.985]
[1742181410176,2.45502,1914.2,1914.0,1.04499]
[1742181410372,1.04492,1914.2,1914.1,1.3805]
[1742181410577,8.41639,1914.3,1914.1,1.3805]
[1742181411869,1.0449,1914.2,1914.1,1.3805]
[1742181413179,7.3715,1914.3,1913.8,1.0451]
[1742181413370,4.25278,1914.1,1913.8,2.3584]
[1742181413570,4.9699,1914.0,1913.9,1.3133]
[1742181413771,1.04508,1913.9,1913.7,40.8]
[1742181413971,4.25288,1913.9,1913.7,40.8]
[1742181414374,6.01493,1914.0,1913.7,43.15845]
[1742181414567,4.9699,1914.0,1913.8,1.3133]
[1742181414777,1.04507,1913.9,1913.8,1.3133]
[1742181415083,4.25287,1913.9,1913.8,1.3133]
[1742181415273,3.2078,1913.9,1913.8,1.3133]
[1742181415472,4.25287,1913.9,1913.8,1.3133]
[1742181415775,3.2078,1913.9,1913.7,40.8]
[1742181415970,4.25291,1913.9,1913.7,40.8]
[1742181416376,9.0778,1913.9,1913.7,40.8]
[1742181416575,1.04512,1913.8,1913.7,40.8]
[1742181416881,10.12291,1913.9,1913.7,40.8]
[1742181417081,1.04512,1913.8,1913.7,40.8]
[1742181418171,6.91512,1913.8,1913.7,40.8]
[1742181418881,1.04523,1913.6,1913.5,0.00783535]
[1742181419077,12.57983099,1913.6,1913.2,1.4182]
[1742181419275,4.25319,1913.3,1913.2,1.4182]
[1742181419480,7.66619,1913.3,1913.2,1.4182]
[1742181419982,7.66619,1913.3,1913.2,42.2182]
[1742181420187,7.66619,1913.3,1913.2,40.8]
[1742181421278,6.6208,1913.3,1913.2,40.8]
[1742181421584,7.66619,1913.3,1913.2,42.1655]
[1742181422180,7.4163,1913.3,1913.2,42.1655]
[1742181422388,8.46169,1913.3,1913.2,42.1655]
[1742181422881,7.4163,1913.3,1913.2,42.1655]
[1742181423091,7.4163,1913.3,1913.2,43.21095]
[1742181423385,7.4163,1913.3,1913.2,42.1655]
[1742181423686,7.4163,1913.3,1913.2,43.21095]
[1742181424089,7.4163,1913.3,1913.2,42.1655]
[1742181424985,8.46169,1913.3,1913.2,40.8]
[1742181425783,7.4163,1913.3,1913.2,40.8]
[1742181425985,7.4163,1913.3,1913.2,41.84545]
[1742181426182,7.4163,1913.3,1913.2,42.1202]
[1742181426688,7.4163,1913.3,1913.2,43.16565]
[1742181427275,8.46169,1913.3,1913.2,42.1202]
[1742181428379,7.4163,1913.3,1913.2,42.1202]
[1742181428575,8.46169,1913.3,1913.2,42.1202]
[1742181429389,7.4163,1913.3,1913.2,42.1202]
[1742181429687,3.2078,1913.3,1913.2,43.16565]
[1742181429884,6.6238,1913.3,1913.2,43.91485]
[1742181430283,3.2078,1913.3,1913.2,43.91485]
[1742181430594,3.42383535,1913.4,1913.3,1.04539]
[1742181430791,3.42383535,1913.4,1913.3,2.45319]
[1742181433388,3.42383535,1913.4,1913.3,1.4078]
[1742181433594,3.42383535,1913.4,1913.2,40.8]
[1742181433595,1.04539,1913.3,1913.2,40.8]
[1742181433884,2.45859,1913.3,1913.2,42.1175]
[1742181435987,1.4132,1913.3,1913.2,42.1175]
[1742181436185,2.45859,1913.3,1913.2,42.1175]
[1742181439598,2.45859,1913.3,1913.2,40.8]
[1742181439801,2.45859,1913.3,1913.2,42.1094]
[1742181440098,2.45859,1913.3,1913.2,40.8]
[1742181440584,2.54764432,1913.3,1913.2,40.8]
[1742181440990,2.45859,1913.3,1913.2,40.8]
[1742181441192,2.54764433,1913.3,1913.2,40.8]
[1742181442798,2.45859,1913.3,1913.2,40.8]
[1742181442994,2.54764473,1913.3,1913.2,40.8]
[1742181443601,1.04545,1913.2,1913.1,0.00783535]
[1742181443794,40.59810473,1913.2,1913.1,0.00783535]
[1742181444102,43.09810473,1913.2,1913.1,0.00783535]
[1742181444496,40.59810473,1913.2,1913.1,40.80783535]
[1742181444798,40.59811051,1913.2,1913.1,40.80783535]
[1742181446201,39.4636,1913.2,1913.1,40.80783535]
[1742181447002,40.50905,1913.2,1913.1,40.80783535]
[1742181447203,39.4636,1913.2,1913.1,42.25783535]
[1742181448705,35.6168,1913.2,1913.1,43.30333535]
[1742181448907,32.1988,1913.2,1913.1,43.30333535]
[1742181449091,35.6168,1913.2,1913.1,43.30333535]
[1742181449698,32.409,1913.2,1913.1,43.30333535]
[1742181450401,28.991,1913.2,1913.1,43.30333535]
[1742181450605,32.407,1913.2,1913.1,43.30333535]
[1742181452301,3.416,1913.2,1913.1,43.30333535]
[1742181457012,9.93548535,1913.4,1913.2,1.04545]
[1742181457304,3.408,1913.3,1913.2,2.49385]
[1742181459108,4.8156,1913.3,1913.2,2.49385]
[1742181461107,1.57773535,1913.4,1913.3,1.04539]
[1742181461310,1.57773535,1913.4,1913.3,2.41179]
[1742181461311,0.78653535,1913.4,1913.3,2.41179]
[1742181461514,4.19253535,1913.4,1913.3,2.41179]
[1742181461815,3.41383535,1913.4,1913.3,2.41179]
[1742181464812,0.00783535,1913.4,1913.3,2.41179]
[1742181465005,3.41383535,1913.4,1913.3,2.41179]
[1742181466809,0.7537,1913.7,1913.3,7.0742]
[1742181467113,1.04521,1913.7,1913.4,2.1925]
[1742181467409,1.04543,1913.3,1913.1,40.80783535]
[1742181467615,1.0453,1913.5,1913.3,1.04539]
[1742181467807,3.1256,1913.5,1913.4,1.408]
[1742181468616,5.4863,1913.5,1913.4,1.408]
[1742181469419,5.4863,1913.5,1913.4,2.45334]
[1742181469620,3.406,1913.5,1913.4,2.45334]
[1742181471817,3.406,1913.5,1913.4,3.21244]
[1742181472121,32.42183535,1913.6,1913.5,1.04528]
[1742181472313,33.76223535,1913.6,1913.5,2.44278]
[1742181473114,32.42183535,1913.6,1913.5,2.44278]
[1742181474618,32.42183535,1913.6,1913.5,1.3975]
[1742181474920,35.62963535,1913.6,1913.5,1.3975]
[1742181475323,38.04896535,1913.6,1913.5,1.3975]
[1742181476028,37.00373535,1913.6,1913.5,1.3975]
[1742181476216,37.00373535,1913.6,1913.3,1.04539]
[1742181476522,2.13,1913.5,1913.4,1.3125]
[1742181477723,2.13,1913.5,1913.4,2.35784]
[1742181482627,28.99583535,1913.6,1913.5,1.04528]
[1742181482927,32.40983535,1913.6,1913.5,2.44088]
[1742181483922,0.00783535,1913.6,1913.5,2.44088]
[1742181484423,3.2078,1914.0,1913.9,1.04507]
[1742181484720,8.075,1914.0,1913.9,1.04507]
[1742181485323,4.8672,1914.0,1913.9,1.04507]
[1742181485529,3.418,1914.0,1913.9,1.04507]
[1742181489020,2.13403535,1914.1,1914.0,1.04501]
[1742181489221,5.54703535,1914.1,1914.0,1.04501]
[1742181489625,3.41883535,1914.1,1914.0,1.04501]
[1742181489927,3.41883535,1914.1,1914.0,1.80181]
[1742181490233,3.41883535,1914.1,1914.0,42.60181]
[1742181490929,4.73093535,1914.1,1914.0,42.60181]
[1742181491632,3.41883535,1914.1,1914.0,42.60181]
[1742181492331,0.00783535,1914.1,1914.0,42.60181]
[1742181495823,1.42663535,1914.1,1914.0,41.84501]
[1742181500544,1.42663535,1914.1,1914.0,40.8]
[1742181501236,1.42663535,1914.1,1914.0,41.84501]
[1742181501539,1.42663535,1914.1,1914.0,40.8]
[1742181501739,1.42663535,1914.1,1914.0,41.84501]
[1742181506543,4.63443535,1914.1,1914.0,41.84501]
[1742181506742,1.42663535,1914.1,1914.0,41.84501]
[1742181507841,1.42663535,1914.1,1914.0,40.8]
[1742181508643,5.67939535,1914.1,1914.0,40.8]
[1742181508839,6.68477932,1914.1,1914.0,40.8]
[1742181509238,9.18477932,1914.1,1914.0,40.8]
[1742181510443,6.68477932,1914.1,1914.0,40.8]
[1742181512246,6.68478582,1914.1,1914.0,40.8]
[1742181512942,9.18478582,1914.1,1914.0,40.8]
[1742181513153,1.04532,1913.5,1913.2,5.02091]
[1742181513451,4.2048,1913.4,1913.3,1.3824]
[1742181513641,6.2803,1913.4,1913.3,1.3824]
[1742181514041,6.2803,1913.4,1913.3,42.1824]
[1742181514547,6.2803,1913.4,1913.3,43.22779]
[1742181514749,6.2803,1913.4,1913.3,42.1824]
[1742181516035,6.2803,1913.4,1913.3,43.22779]
[1742181516648,6.2803,1913.4,1913.3,42.1824]
[1742181516853,6.2803,1913.4,1913.3,43.22779]
[1742181517150,3.404,1913.4,1913.3,43.22779]
[1742181517348,5.4153,1913.8,1913.3,45.72779]
[1742181517551,1.05282535,1914.1,1913.8,1.04508]
[1742181517751,6.66901,1914.0,1913.9,1.3369]
[1742181518147,1.04512,1913.8,1913.4,0.803]
[1742181518352,3.405,1913.7,1913.6,1.0452]
[1742181518551,5.5437,1913.7,1913.6,1.0452]
[1742181518946,5.5437,1913.7,1913.6,41.8452]
[1742181519351,2.1387,1913.7,1913.6,41.8452]
[1742181519649,5.5437,1913.7,1913.6,41.8452]
[1742181519850,6.58887,1913.7,1913.6,40.8]
[1742181520243,6.58887,1913.7,1913.6,42.249]
[1742181520443,5.5437,1913.7,1913.6,42.249]
[1742181523460,0.7896,1913.7,1913.6,43.29423]
[1742181523656,9.0778,1913.8,1913.7,1.04517]
[1742181523860,12.4828,1913.8,1913.7,1.4117]
[1742181524360,13.9291,1913.8,1913.7,1.4117]
[1742181524553,14.97422,1913.8,1913.7,1.4117]
[1742181524950,1.04517,1913.7,1913.6,40.8]
[1742181525156,2.36887,1913.7,1913.6,40.8]
[1742181528164,4.95790618,1913.7,1913.6,40.8]
[1742181528368,4.95790618,1913.7,1913.3,1.3357]
[1742181528369,1.04534,1913.4,1913.3,1.3357]
[1742181528564,42.51714,1913.4,1913.3,1.3357]
[1742181528765,42.51714,1913.4,1913.3,40.8]
[1742181528967,42.60618961,1913.4,1913.3,40.8]
[1742181529366,45.10618961,1913.4,1913.3,40.8]
[1742181529570,45.52471581,1913.4,1913.3,40.8]
[1742181529759,46.44081348,1913.4,1913.3,40.8]
[1742181530574,46.44082365,1913.4,1913.3,40.8]
[1742181531173,43.94082365,1913.4,1913.3,40.8]
[1742181531770,43.02472598,1913.4,1913.3,40.8]
[1742181534368,42.60119978,1913.4,1913.3,40.8]
[1742181535277,43.91879978,1913.4,1913.3,40.8]
[1742181538280,1.04545,1913.2,1913.1,0.00783535]
[1742181538466,4.25325,1913.2,1913.1,0.00783535]
[1742181538672,4.34231174,1913.2,1913.1,0.00783535]
[1742181538871,6.44671174,1913.2,1913.1,0.00783535]
[1742181539273,6.44671174,1913.2,1913.1,40.80783535]
[1742181539669,14.81671174,1913.2,1913.1,40.80783535]
[1742181539978,1.04561,1912.9,1912.8,1.3655]
[1742181540167,7.66441,1912.9,1912.8,1.3655]
[1742181540371,1.04578,1912.6,1912.5,0.7505]
[1742181540573,1.04585,1912.5,1911.9,9.2078]
[1742181540877,3.2078,1912.4,1912.3,0.7505]
[1742181541173,3.21563535,1912.4,1912.3,0.7505]